Cogmind - Beta 10 @@@ ROGUE MODE // 2020.09.16 @ 10:07:39 Player: OccultOnion Result: Destroyed by Y-54 Guardian with Gatling Laser Performance ------------- Evolutions (4) 2000 Regions Visited (7) 1400 Robots Destroyed (45) 225 Value Destroyed (1623) 1623 Prototype IDs (1) 20 Alien Tech Used (0) 0 Bonus (33) 33 TOTAL SCORE: 5301 Bonus ------- High Alert Combat Kills 33 Cogmind --------- Core Integrity 0/850 Matter 77/300 Energy 99/100 System Corruption 0% Temperature Cool (6) Movement Core (50) Location -6/Factory Parts ------- > --- POWER (2) -------- (None) > --- PROPULSION (4) --- (None) > --- UTILITY (6) ------ Transport Network Coupler > --- WEAPON (3) ------- (None) > --- INVENTORY (4) ---- Light Angular Momentum Engine Armored Leg Improved Heat Sink Peak State ------------ > --- POWER ------------ Light Ion Engine Light Deuterium Engine > --- PROPULSION ------- Aluminum Leg Aluminum Leg Carbon-fiber Leg Gravmag System > --- UTILITY ---------- Advanced Heat Sink Medium Storage Unit Sensor Array Transport Network Coupler Improved Light Armor Plating Focal Shield > --- WEAPON ----------- Gauss Rifle Improved Light Cannon Axe > --- INVENTORY -------- Light Angular Momentum Engine Armored Leg Improved Heat Sink Small Storage Unit Launcher Guidance Computer Battle Cannon Mini Grenade Launcher Mini Grenade Launcher [Rating: 40] Favorites ----------- Power Light Ion Engine Engine Light Ion Engine Propulsion Aluminum Leg Leg Aluminum Leg Wheel Wheel Hover Unit Hover Unit Utility Sensor Array Device Sensor Array Storage Small Storage Unit Processor Transport Network Coupler Protection Improved Light Armor Plating Weapon Improved Light Cannon Energy Gun Medium Laser Ballistic Gun Gauss Rifle Ballistic Cannon Improved Light Cannon Launcher Mini Grenade Launcher Slashing Weapon Axe Build | -11 -10 -9 -8 -7 -7 -7 -6 ------- Run | Scr Mat Mat Mat Fac Low Low Fac Slots Evolved 8 | . . 2 2 2 . . 2 Power 1 | . . . . . . . 1 Propulsion 2 | . . 1 1 . . . . Utility 4 | . . 1 1 1 . . 1 Weapon 1 | . . . . 1 . . . Parts Attached 38 | 1 . 2 14 4 1 2 14 Power 1 | . . . . . . . 1 Engine 1 | . . . . . . . 1 Core . | . . . . . . . . Reactor . | . . . . . . . . Propulsion 11 | . . 1 7 . . 2 1 Treads . | . . . . . . . . Leg 6 | . . . 4 . . 1 1 Wheel 1 | . . 1 . . . . . Hover 4 | . . . 3 . . 1 . Flight . | . . . . . . . . Utility 12 | 1 . 1 3 2 . . 5 Device 5 | . . . 1 1 . . 3 Storage 2 | 1 . . . 1 . . . Processor 1 | . . . 1 . . . . Hackware . | . . . . . . . . Protection 4 | . . 1 1 . . . 2 Artifact . | . . . . . . . . Weapon 14 | . . . 4 2 1 . 7 Energy Gun 3 | . . . 3 . . . . Energy Cannon . | . . . . . . . . Ballistic Gun 2 | . . . . 2 . . . Ballistic Cannon 3 | . . . 1 . . . 2 Launcher 4 | . . . . . 1 . 3 Special Weapon . | . . . . . . . . Impact Weapon . | . . . . . . . . Slashing Weapon 2 | . . . . . . . 2 Piercing Weapon . | . . . . . . . . Special Melee Weapon . | . . . . . . . . Unidentified Prototypes . | . . . . . . . . Parts Lost 28 | . . . 9 2 1 . 16 Power 2 | . . . . . . . 2 Propulsion 9 | . . . 3 1 1 . 4 Utility 6 | . . . 2 . . . 4 Weapon 11 | . . . 4 1 . . 6 Highest Loss Streak 15 | . . . 2 2 1 . 15 Average Slot Usage (%) 92 | . 100 96 97 90 90 100 83 Engine 9 | . 14 11 9 7 7 7 10 Leg 19 | . 28 22 10 23 21 23 16 Wheel 3 | . . 11 9 4 . . . Hover 4 | . . . 15 . . 7 4 Device 11 | . . . 8 15 15 15 16 Storage 11 | . 28 22 16 7 7 7 5 Processor 5 | . . . 4 7 7 7 6 Protection 5 | . . 8 5 7 7 7 4 Energy Gun 5 | . 14 11 12 4 . . . Ballistic Gun 7 | . 14 11 2 4 13 7 4 Ballistic Cannon 4 | . . . 1 7 7 7 4 Launcher 1 | . . . . . 1 7 3 Naked Turns . | . . . . . . . . Heaviest Build 33 | 15 15 20 23 26 26 25 33 Greatest Support 40 | 20 20 10 40 40 40 35 35 Greatest Overweight (x) 7 | . . 1 2 7 . . 1 Average Overweight (x) . | . . 1 1 1 . . . Largest Inventory Capacity 8 | 8 8 8 8 8 8 8 8 Average Capacity 7 | 6 8 8 7 7 8 8 7 Most Carried 8 | 6 8 8 8 8 8 7 8 Average Carried 7 | 5 7 7 7 7 7 6 6 Final Capacity 8 | 8 8 8 6 8 8 8 4 Final Carried 8 | 6 8 8 6 8 8 6 3 Class Distribution -------------------- 32% | Mutant 30% | Scavenger-Skirmisher 27% | Scavenger-Mutant 8% | Scavenger-Tank Dominant Class ---------------- Mutant | -10/Materials Mutant | -9/Materials Scavenger-Mutant | -8/Materials Scavenger-Mutant | -7/Factory Scavenger-Skirmisher | -7/Lower Caves Scavenger-Skirmisher | -7/Lower Caves Scavenger-Mutant | -6/Factory Resources | -11 -10 -9 -8 -7 -7 -7 -6 ----------- Run | Scr Mat Mat Mat Fac Low Low Fac Matter Collected 771 | 234 51 65 201 86 88 . 46 Remotely . | . . . . . . . . Salvage Created 1596 | 98 175 197 691 86 80 . 269 Parts 89 | 5 10 15 34 7 8 . 10 Haulers Intercepted 3 | . . 1 1 . . . 1 Recyclers Shooed 2 | 1 . . . . . . 1 Parts Field Recycled . | . . . . . . . . Retrieved Matter . | . . . . . . . . Parts Self-Destructed 7 | . . . . . 7 . . Prevented . | . . . . . . . . Kills | -11 -10 -9 -8 -7 -7 -7 -6 ------- Run | Scr Mat Mat Mat Fac Low Low Fac Combat Hostiles Destroyed 35 | . 5 5 12 2 4 . 7 Guns 21 | . 5 5 10 . 1 . . Cannons 6 | . . . 2 2 . . 2 AOE 8 | . . . . . 3 . 5 Classes Destroyed 10 | 2 2 2 2 2 . . . Tunneler 1 | 1 . . . . . . . Hauler 3 | . . 1 1 . . . 1 Recycler 1 | 1 . . . . . . . Operator 3 | . . . 2 . . . 1 Watcher 2 | . . 1 . 1 . . . Swarmer 9 | . 2 3 . . 4 . . Grunt 21 | . 3 2 9 . . . 7 Sentry 3 | . . . 3 . . . . Hunter 1 | . . . . 1 . . . Programmer 1 | . . . . 1 . . . Best Kill Streak 5 | 1 4 4 5 2 4 . 3 Combat Bots Only 4 | . 4 4 4 2 4 . 3 Max Kills in Single Turn 3 | 1 1 2 1 1 3 . 3 Gunslinging 1 | . . 1 . . . . . Exploded 3 | . . . . . 3 . 2 Melee . | . . . . . . . . Uniques/NPCs Destroyed . | . . . . . . . . Combat | -11 -10 -9 -8 -7 -7 -7 -6 -------- Run | Scr Mat Mat Mat Fac Low Low Fac Damage Taken 3270 | . 251 91 763 377 92 . 1696 Core 1062 | . 53 18 110 27 . . 854 Absorbed by Shields . | . . . . . . . . Core Remaining (%) 89 | 100 78 95 80 . . 96 . Volleys Fired 125 | 8 17 15 51 14 2 . 18 Largest 3 | 2 2 2 2 2 3 . 3 Hottest 110 | 70 70 70 110 108 97 . 97 Shots Fired 228 | 16 34 30 88 24 7 . 29 Gun 175 | 16 34 30 77 10 3 . 5 Cannon 41 | . . . 11 14 3 . 13 Launcher 12 | . . . . . 1 . 11 Special . | . . . . . . . . Kinetic 110 | 8 17 15 28 18 6 . 18 Thermal 77 | 8 17 15 31 6 . . . Explosive 12 | . . . . . 1 . 11 Electromagnetic 29 | . . . 29 . . . . Robot Hit Streak 18 | 2 5 13 18 5 . . 3 Robot Miss Streak 5 | 5 2 2 2 2 3 . 1 Penetration Max . | . . . . . . . . Secondary Targets 1 | . . 1 . . . . . Max Gunslinging Chain 1 | . . 1 . . . . . Shots Hit Robots 138 | 7 23 20 62 14 . . 12 Core Hits 86 | 3 10 10 29 6 5 . 23 Critical Hits 2 | . . 1 . 1 . . . Critical Kills 2 | . . 1 . 1 . . . Critical Parts Destroyed . | . . . . . . . . Melee Attacks 16 | . . . . . . . 16 Impact . | . . . . . . . . Slashing 16 | . . . . . . . 16 Piercing . | . . . . . . . . Sneak Attacks . | . . . . . . . . Combat Hostiles . | . . . . . . . . Follow-up Attacks . | . . . . . . . . Damage Inflicted 4028 | 111 300 267 1204 276 142 . 1728 Guns 1615 | 111 300 267 752 102 21 . 62 Cannons 428 | . . . 177 174 . . 77 Explosions 1813 | . . . 275 . 121 . 1417 Melee 154 | . . . . . . . 154 Ramming 18 | . . . . . . . 18 Kinetic 1019 | 62 126 131 339 201 21 . 139 Thermal 1486 | 49 174 136 531 75 . . 521 Explosive 1017 | . . . . . 121 . 896 Electromagnetic 334 | . . . 334 . . . . Impact . | . . . . . . . . Slashing 154 | . . . . . . . 154 Piercing . | . . . . . . . . Highest Corruption 5 | . 2 . . 5 5 5 . Average Corruption 4 | . 2 . . 4 5 5 . Corruption Purged . | . . . . . . . . Effects 21 | . 2 . . 4 13 2 . Message Errors 3 | . 1 . . . 2 . . Matter Fused 7 | . . . . 1 4 2 . Heat Flow Errors 1 | . 1 . . . . . . Energy Discharges 3 | . . . . 1 2 . . Data Loss (minor) 3 | . . . . 1 2 . . Misfires 1 | . . . . . 1 . . Targeting Errors 3 | . . . . 1 2 . . Overload Shots . | . . . . . . . . Overflow Damage 180 | . . . 151 . . . 29 Projectiles . | . . . . . . . . Explosions 180 | . . . 151 . . . 29 Melee . | . . . . . . . . Knockbacks 5 | . . . . 4 . . 1 Impact 1 | . . . . . . . 1 Kinetic 3 | . . . . 3 . . . Secondary 1 | . . . . 1 . . . Self-Inflicted Damage 166 | . . . 87 . . . 79 Shots 2 | . . . 1 . . . 1 Rammed 4 | . . . . . . . 4 Targets Rammed 5 | . . . . . . . 5 Kicked 1 | . . . . . . . 1 Crushed . | . . . . . . . . Highest Temperature 180 | 38 180 126 156 31 . . 1 Average Temperature 45 | 14 56 41 48 26 . . 1 Received Heat Transfer 930 | . 96 42 342 18 . . 432 Siege Activations . | . . . . . . . . Robots Corrupted . | . . . . . . . . Combat Hostiles . | . . . . . . . . Parts Fried 1 | . . . 1 . . . . Impact Corruptions . | . . . . . . . . Robots Melted . | . . . . . . . . Combat Hostiles . | . . . . . . . . Parts Melted 5 | . 3 . 1 1 . . . Heat Transferred 2337 | 148 518 407 816 148 . . 300 Parts Sabotaged . | . . . . . . . . Parts Stolen . | . . . . . . . . Parts Stripped . | . . . . . . . . Power Chain Reactions . | . . . . . . . . Missiles Intercepted . | . . . . . . . . Alert | -11 -10 -9 -8 -7 -7 -7 -6 ------- Run | Scr Mat Mat Mat Fac Low Low Fac Peak Influence 458 | 10 156 214 458 208 . . 364 Initial 130 | . 6 65 90 130 . . 39 Average 159 | 6 90 90 274 171 . . 138 Maximum Alert Level 2 | . . 1 2 1 . . 1 Low Security (%) 73 | 100 100 97 26 67 . . 90 Level 1 21 | . . 2 51 32 . . 9 Level 2 5 | . . . 21 . . . . Level 3 . | . . . . . . . . Level 4 . | . . . . . . . . Level 5 . | . . . . . . . . High Security . | . . . . . . . . Max Security . | . . . . . . . . Squads Dispatched 13 | . 1 1 5 3 . . 3 Investigation 5 | . . . 1 2 . . 2 Extermination . | . . . . . . . . Reinforcement 8 | . 1 1 4 1 . . 1 Assault . | . . . . . . . . Garrison . | . . . . . . . . Intercept . | . . . . . . . . Construction Impeded . | . . . . . . . . Haulers Reinforced 1 | . . . . . . . 1 Stealth | -11 -10 -9 -8 -7 -7 -7 -6 --------- Run | Scr Mat Mat Mat Fac Low Low Fac Distress Signals 3 | . 1 . . . . . 2 Communications Jammed . | . . . . . . . . Distress Signals . | . . . . . . . . Times Spotted 75 | . 9 11 18 10 4 . 23 Peak Tracking Total 9 | . 6 4 3 6 4 . 9 Tactical Retreats 4 | . . 1 . . . . 3 Traps | -11 -10 -9 -8 -7 -7 -7 -6 ------- Run | Scr Mat Mat Mat Fac Low Low Fac Traps Triggered 4 | . 1 . . . . . 3 Indirectly . | . . . . . . . . Trap Hack Attempts . | . . . . . . . . Triggered . | . . . . . . . . Disarmed . | . . . . . . . . Reprogrammed . | . . . . . . . . Reused . | . . . . . . . . Traps Extracted . | . . . . . . . . Installed . | . . . . . . . . Triggered . | . . . . . . . . Machines | -11 -10 -9 -8 -7 -7 -7 -6 ---------- Run | Scr Mat Mat Mat Fac Low Low Fac Machines Disabled 11 | . . . 3 . . . 8 Max in Single Turn 6 | . . . 2 . . . 6 Machines Sabotaged . | . . . . . . . . Garrisons Compromised . | . . . . . . . . Overloaded Fab Kills . | . . . . . . . . Fab Network Shutdowns . | . . . . . . . . Hacking | -11 -10 -9 -8 -7 -7 -7 -6 --------- Run | Scr Mat Mat Mat Fac Low Low Fac Machines Accessed 12 | . 1 . 2 6 . . 3 Terminals 6 | . . . 2 2 . . 2 Fabricators 1 | . . . . . . . 1 Repair Stations . | . . . . . . . . Recycling Units 2 | . 1 . . 1 . . . Scanalyzers 2 | . . . . 2 . . . Garrison Access 1 | . . . . 1 . . . Total Hacks 31 | . 1 . 5 18 . . 7 Successful 17 | . 1 . 2 11 . . 3 Failed 14 | . . . 3 7 . . 4 Catastrophic 3 | . . . . 2 . . 1 Database Lockouts . | . . . . . . . . Manual 13 | . . . 4 5 . . 4 Terminals 15 | . . . 5 5 . . 5 Fabricators 2 | . . . . . . . 2 Repair Stations . | . . . . . . . . Recycling Units 2 | . 1 . . 1 . . . Scanalyzers 10 | . . . . 10 . . . Garrison Access 2 | . . . . 2 . . . Terminal Hacks 1 | . . . 1 . . . . Recall Reinforcements 1 | . . . 1 . . . . Fabricator Hacks 2 | . . . . . . . 2 Load Schematic 1 | . . . . . . . 1 Build 1 | . . . . . . . 1 Repair Station Hacks . | . . . . . . . . Recycling Unit Hacks 2 | . 1 . . 1 . . . Report Inventory 2 | . 1 . . 1 . . . Scanalyzer 9 | . . . . 9 . . . Insert Component 3 | . . . . 3 . . . Analyze 6 | . . . . 6 . . . Garrison Access Hacks . | . . . . . . . . Unauthorized Hacks 3 | . . . 1 1 . . 1 Terminals 3 | . . . 1 1 . . 1 Botnet 3 | . . . 1 1 . . 1 Fabricators . | . . . . . . . . Repair Stations . | . . . . . . . . Recycling Units . | . . . . . . . . Scanalyzers . | . . . . . . . . Garrison Access . | . . . . . . . . Data Cores Recovered . | . . . . . . . . Used . | . . . . . . . . Hacking Detections 11 | . . . 2 6 . . 3 Full Trace Events 4 | . . . 1 2 . . 1 Feedback Events . | . . . . . . . . Feedback Blocked . | . . . . . . . . Robot Schematics Acquired . | . . . . . . . . Robots Built . | . . . . . . . . Matter . | . . . . . . . . Time . | . . . . . . . . Total Robot Build Rating . | . . . . . . . . Part Schematics Acquired 3 | . . . . 3 . . . Parts Built 1 | . . . . . . . 1 Matter 124 | . . . . . . . 124 Time 62 | . . . . . . . 62 Total Part Build Rating 2 | . . . . . . . 2 Parts Repaired . | . . . . . . . . Time . | . . . . . . . . Parts Recycled . | . . . . . . . . Recycled Matter . | . . . . . . . . Retrieved Matter . | . . . . . . . . Retrieved Components . | . . . . . . . . Parts Scanalyzed 3 | . . . . 3 . . . Part Schematics Acquired 3 | . . . . 3 . . . Parts Damaged 2 | . . . . 2 . . . Bothacking | -11 -10 -9 -8 -7 -7 -7 -6 ------------ Run | Scr Mat Mat Mat Fac Low Low Fac Used RIF Installer . | . . . . . . . . Robots Hacked . | . . . . . . . . Non-combat . | . . . . . . . . Combat . | . . . . . . . . Robot Hacks Applied . | . . . . . . . . Relay Couplers Released . | . . . . . . . . Robots Rewired . | . . . . . . . . Allies Hacked . | . . . . . . . . Hacks Repelled . | . . . . . . . . Allies | -11 -10 -9 -8 -7 -7 -7 -6 -------- Run | Scr Mat Mat Mat Fac Low Low Fac Total Allies . | . . . . . . . . Largest Group . | . . . . . . . . Highest-Rated Group . | . . . . . . . . Highest-Rated Ally . | . . . . . . . . Total Orders . | . . . . . . . . Ally Attacks . | . . . . . . . . Total Damage . | . . . . . . . . Kills . | . . . . . . . . Allies Corrupted . | . . . . . . . . Allies Melted . | . . . . . . . . Intel | -11 -10 -9 -8 -7 -7 -7 -6 ------- Run | Scr Mat Mat Mat Fac Low Low Fac Robot Analysis Total . | . . . . . . . . Derelict Logs Recovered . | . . . . . . . . Drone Launches . | . . . . . . . . Drone Recoveries . | . . . . . . . . Exploration | -11 -10 -9 -8 -7 -7 -7 -6 ------------- Run | Scr Mat Mat Mat Fac Low Low Fac Turns Passed 2469 | 56 238 226 430 310 506 140 563 Spaces Moved 1780 | 24 150 178 262 234 412 116 404 Core 128 | . . . . 1 . . 127 Treads . | . . . . . . . . Legs 1056 | 24 150 . 1 76 412 116 277 Wheels 596 | . . 178 261 157 . . . Hover . | . . . . . . . . Flight . | . . . . . . . . Fastest Speed 50 | 120 120 90 90 90 120 120 50 Average Speed 106 | 120 120 90 93 106 120 120 98 Slowest Speed 400 | 120 120 90 120 400 120 120 150 Overloaded Moves . | . . . . . . . . Propulsion Burnouts . | . . . . . . . . Robots Hopped . | . . . . . . . . Cave-ins Triggered . | . . . . . . . . Exploration Rate (%) 20 | 3 31 22 27 5 52 12 11 Regions Visited 7 Branch Regions 2 Pre-discovered Areas . | . . . . . . . . Known Exits Taken . | . . . . . . . . Unknown Exits Taken 7 | 1 1 1 1 1 1 1 . Scrap Searched 1 | . . . . . 1 . . Spaces Dug 12 | . . . . . . . 12 Terrain Destroyed 152 | . . . 18 . 3 . 131 Melee 12 | . . . . . . . 12 Projectile . | . . . . . . . . AOE 140 | . . . 18 . 3 . 119 Terrain Rammed . | . . . . . . . . Walls Destroyed . | . . . . . . . . Machines Disabled . | . . . . . . . . Actions | -11 -10 -9 -8 -7 -7 -7 -6 --------- Run | Scr Mat Mat Mat Fac Low Low Fac Total 2112 | 35 174 216 361 271 420 117 518 Wait 80 | . 4 8 14 9 . . 45 Move 1773 | 23 149 177 261 233 411 115 404 Hop . | . . . . . . . . Pick Up 49 | 2 3 8 15 8 3 . 10 Fast Attach . | . . . . . . . . Attach 29 | 1 . 2 11 3 . 2 10 Detach 1 | . . . . . . . 1 Swap 9 | . . . 3 1 1 . 4 Drop 25 | 1 1 6 6 3 3 . 5 Fire 125 | 8 17 15 51 14 2 . 18 Melee 16 | . . . . . . . 16 Ram 4 | . . . . . . . 4 Kick 1 | . . . . . . . 1 Crush . | . . . . . . . . Escape Stasis . | . . . . . . . . Rewire . | . . . . . . . . Trap . | . . . . . . . . Miscellaneous . | . . . . . . . . Route ------- -11/Scrapyard -10/Materials -9/Materials -8/Materials -7/Factory -7/Lower Caves -7/Lower Caves -6/Factory History --------- Turn | Location | Event 13 | -11/Scrapyard | Discovered new exit (range 3) 57 | -11/Scrapyard | Entered Materials 260 | -10/Materials | Discovered new exit (range 16) 295 | -10/Materials | Entered another Materials area 295 | -9/Materials | Evolved 2 slots: Propulsion x1, Utility x1 326 | -9/Materials | Build established: Mutant 518 | -9/Materials | Discovered new exit (range 3) 521 | -9/Materials | Entered another Materials area 521 | -8/Materials | Evolved 2 slots: Propulsion x1, Utility x1 910 | -8/Materials | Discovered new exit (range 15) 951 | -8/Materials | Entered Factory 951 | -7/Factory | Evolved 2 slots: Utility x1, Weapon x1 1019 | -7/Factory | Build established: Scavenger-Mutant 1257 | -7/Factory | Discovered new exit (range 3) 1261 | -7/Factory | Entered Lower Caves 1461 | -7/Lower Caves | Build established: Scavenger-Skirmisher 1753 | -7/Lower Caves | Discovered new exit (range 9) 1767 | -7/Lower Caves | Entered another Lower Caves area 1768 | -7/Lower Caves | Encountered a Warlord checkpoint 1897 | -7/Lower Caves | Discovered new exit (range 8) 1907 | -7/Lower Caves | Entered Factory 1907 | -6/Factory | Evolved 2 slots: Power x1, Utility x1 2051 | -6/Factory | Fabricated Mni. Grenade Launcher (x1) 2298 | -6/Factory | Spotted B-75 Beast 2388 | -6/Factory | Core integrity fell below 50% 2414 | -6/Factory | Lost 15 parts (2p4n4u5w) 2434 | -6/Factory | Core integrity fell below 20% 2470 | -6/Factory | Destroyed by Y-54 Guardian with Gatling Laser Last Messages --------------- 02386_ G-50 Soldier knocked back. 02387_ Slammed into G-50 Soldier. 02393_ Connecting with Terminal... >>Trojan(Botnet) Trojan loaded successfully. Testing... Terminal linked with 0 systems. Awaiting botnet instructions. 02399_ U-05 Engineer destroyed. 02400_ K-01 Serf collects debris. 02422_ Dropped Imp. Heat Sink. 02423_ Acquired Unknown Device. 02424_ Identified Imp. Particle Charger. 02425_ Dropped Imp. Particle Charger. 02426_ Acquired Imp. Heat Sink. 02433_ Penetrated by Slug. 02467_ Slammed into Y-54 Guardian. 02467_ Transport Network Coupler permanently disabled. 02467_ Destabilizing: Short circuit. 02468_ Battle Cannon destroyed. Map ----- +----------------------------------------------------+ | ????????????# #?????????######?????????????? | | ????????????# ########## #?????????????? | | ????????????# !###! #???????? | | ????????????+ %! #???????? | | ????????????# #?????????????? | | ????????????# #######+## #?????????????? | | ????????????# ## #???????????????????? | | ????????????### #### #???????????????????? | | ??????????????# #??# #???????????????????? | | ??????????????# #??# #???????????????????? | | ###???????????# #??# ! #???????????????????? | | ?###?????## ##?# #???????????????????? | | ##"####### #?# #???????????????????? | | T #?# +???????????????????? | | "" #?# #???????????????????? | | #?# #???????????????????? | | ##/#"##### #?# #???????????????????? | | ?# ########?####+####???????????????????? | | #?# "" #???????????# #??????????????????????? | | ?#" """#???????????# #??????????????????????? | | ## S"#???????????# #??????????????????????? | | "#????######?# #??????????????????????? | | "#????# # #??????????????????????? | | #????# """" #Y########???????????????? | | #????# """" + #??????????? | | # * !#????# """" #@########???????????????? | | !% *!!#????? """" # ##############?????????? | | = * #????? ?# # !#?????????? | | " """##????######?# # "" """ #?????????? | | """ ????????????# # "Y """ #?????????? | | "## ###????????????#Y/ "" """ #?????????? | | ######???????????????# # #?????????? | | #???????###########??# ##############?????????? | | #???????# ! #??# #??????????????????????? | | ##??????# #??# #??????????????????????? | | "#??????# """ """ #### #??????????????????????? | | ##??????# """ """ + #??????????????????????? | | #???????# """ """^######??????????????????????? | | #???????# #???????????????????????????? | | ##??????# #???????????????????????????? | | "#??????#! #???????????????????????????? | | #####??????###########???????????????????????????? | | ?????????????????????????????????????????????????? | | ?????????????????????????????????????????????????? | | ?????????????????????????????????????????????????? | | ?????????????????????????????????????????????????? | | ?????????????????????????????????????????????????? | | ?????????????????????????????????????????????????? | | ?????????????????????????????????????????????????? | | ?????????????????????????????????????????????????? | +----------------------------------------------------+ Best States ------------- Heat Dissipation 70 Energy Generation 19 Energy Capacity 165 Matter Stores 300 Matter Capacity 300 Sight Range 16 Robot Scan Range 10 Terrain Scan Density 10 Armor Coverage 150 Resistance: KI 20 Evasion (%) 50 Item Schematics ----------------- Mni. Grenade Launcher | -7/Factory | Scanalyzed Lgt. Nuclear Core | -7/Factory | Scanalyzed Enh. Nuclear Core | -7/Factory | Scanalyzed Robot Schematics ------------------ None Fabricated ------------ Mni. Grenade Launcher | x1 | -6/Factory Alien Tech Used ----------------- None Achievements -------------- Safety First Challenges ------------ None Game ------ Seed OverloadArmageddonBoosters Manual? 0 Play Time 00:32:12 Cumulative 62.8 hours Start 2020.09.16 @ 09:35:40 End 2020.09.16 @ 10:07:39 Sessions 1 Manual Loads 0 Difficulty Rogue Special Mode None Game No. 147 Rogue 147 Adventurer 0 Explorer 0 Win Type - Total 0 Types 0/0/0/0/0/0/0/0/0 Lore% 30 Gallery% 50 Achievement% 32 Wizard Run 0 Options --------- ASCII 0 Keyboard 1 Movement Numpad Keybinds 0 Fullscreen 2 Font 18/SmallcapsGlow Map View 76x50 Tactical HUD 1 Map Filters NONE Filters NONE Steam 1 RUN: 076685b4-87af-48ae-a1dd-5403af3e6148